bitfinex/quotes_ETHUSD_20240816
["timestamp","ask_amount","ask_price","bid_price","bid_amount"]
[1723787659809,0.09532883,2602.6,2602.4,1.328]
[1723787660008,3.02037183,2602.8,2602.4,1.328]
[1723787660214,0.09529206,2602.5,2602.4,1.328]
[1723787660410,3.02037183,2602.8,2602.4,1.328]
[1723787660717,0.71516183,2602.8,2602.4,1.328]
[1723787661014,0.09529206,2602.7,2602.4,1.328]
[1723787661217,0.09529206,2602.7,2602.5,2.4584]
[1723787661373,2.30512,2602.9,2602.5,2.4584]
[1723787661574,0.09529206,2602.6,2602.5,2.4584]
[1723787662219,7.44,2603.0,2602.5,6.09972845]
[1723787662520,7.44,2603.0,2602.7,2.3052]
[1723787662723,7.44,2603.0,2602.7,4.61048]
[1723787662889,7.44,2603.0,2602.8,35.0]
[1723787664441,2.01755047,2603.2,2602.7,2.3052]
[1723787664714,2.01755047,2603.2,2602.7,4.61049]
[1723787664915,2.01755047,2603.2,2602.7,39.61049]
[1723787665495,2.01755047,2603.2,2602.8,6.04819]
[1723787665732,2.01755047,2603.3,2602.9,2.2935]
[1723787666085,2.01755047,2603.2,2602.9,2.2935]
[1723787666309,4.32231047,2603.3,2602.9,2.2935]
[1723787667608,4.32223077,2603.3,2602.9,2.2935]
[1723787672016,4.32201508,2603.3,2602.9,2.2935]
[1723787672416,2.30476,2603.3,2602.9,2.2935]
[1723787673738,9.45725508,2603.4,2602.9,2.2935]
[1723787673920,9.45725508,2603.4,2603.0,3.63303]
[1723787673921,7.44,2603.4,2603.0,3.63303]
[1723787674253,0.08981982,2603.3,2603.1,2.4738]
[1723787676515,0.08985001,2603.2,2603.1,2.4738]
[1723787676704,0.43218451,2603.4,2603.1,2.4738]
[1723787677138,0.08985001,2603.3,2603.1,2.4738]
[1723787678547,4.32121965,2603.5,2603.1,2.4738]
[1723787678738,0.08985001,2603.2,2603.1,2.4738]
[1723787678939,4.32121965,2603.5,2603.1,2.4738]
[1723787679285,0.08985001,2603.2,2603.1,2.4738]
[1723787679465,4.32121965,2603.5,2603.1,2.4738]
[1723787679675,0.08985001,2603.2,2603.1,2.4738]
[1723787679858,4.32121965,2603.5,2603.1,2.4738]
[1723787680182,7.83758662,2603.5,2603.1,2.4738]
[1723787680386,0.0897917,2603.4,2603.1,2.4738]
[1723787695163,0.0899124,2603.3,2603.1,2.4738]
[1723787695455,11.07245,2603.7,2603.1,2.4738]
[1723787695617,0.0899124,2603.2,2603.1,2.4738]
[1723787695814,2.30451,2603.6,2603.1,2.4738]
[1723787696073,0.0899124,2603.2,2603.1,2.4738]
[1723787696249,2.30451,2603.6,2603.1,2.4738]
[1723787696416,0.0899124,2603.2,2603.1,2.4738]
[1723787696619,7.44,2603.7,2603.3,2.2856]
[1723787696959,18.80357409,2603.9,2603.3,2.2856]
[1723787696960,4.60858,2603.9,2603.3,2.2856]
[1723787697119,2.01315741,2603.8,2603.3,2.2856]
[1723787698378,2.30427,2603.9,2603.3,2.2856]
[1723787698867,2.30433,2603.8,2603.3,2.2856]
[1723787703786,2.30427,2603.9,2603.4,2.3596]
[1723787704155,0.08984508,2603.8,2603.4,2.3596]
[1723787710693,2.39418508,2603.8,2603.4,2.3596]
[1723787710912,3.94220715,2603.8,2603.4,2.3596]
[1723787712706,1.63786715,2603.8,2603.4,2.3596]
[1723787719712,3.94219715,2603.8,2603.4,2.3596]
[1723787720813,2.30447,2603.7,2603.4,2.3596]
[1723787721110,4.69889581,2603.7,2603.4,2.3596]
[1723787721408,3.35338907,2603.7,2603.4,2.3596]
[1723787724511,1.04891907,2603.7,2603.4,2.3596]
[1723787724712,0.08994581,2603.7,2603.4,2.3596]
[1723787725013,6.62368513,2603.9,2603.4,2.3596]
[1723787725213,0.08991228,2603.6,2603.4,2.3596]
[1723787725417,6.62368513,2603.9,2603.4,2.3596]
[1723787725713,0.08991228,2603.5,2603.4,2.3596]
[1723787725916,2.30445,2603.7,2603.1,2.3155]
[1723787726079,0.08992904,2603.5,2603.1,2.3155]
[1723787726282,2.39444581,2603.6,2603.1,2.3155]
[1723787726624,0.0899324,2603.5,2603.1,2.3155]
[1723787728735,2.30445,2603.7,2603.1,2.3155]
[1723787728893,0.08848573,2603.4,2603.1,2.3155]
[1723787729092,2.30445,2603.7,2603.1,2.3155]
[1723787729432,0.57259236,2603.6,2603.1,37.3155]
[1723787729689,0.08848573,2603.6,2603.1,37.3155]
[1723787731829,0.08848573,2603.6,2603.2,2.3376]
[1723787732394,0.08848573,2603.6,2603.3,35.0]
[1723787734410,0.08848573,2603.6,2603.5,1.328]
[1723787734746,12.16313753,2604.5,2603.9,4.68191]
[1723787734747,2.01617294,2604.4,2603.9,4.68191]
[1723787734947,4.31997294,2604.4,2603.9,3.7057]
[1723787735123,0.07910349,2604.3,2603.9,2.3777]
[1723787736340,2.30413,2604.1,2603.6,2.4681]
[1723787736542,0.82067,2604.0,2603.6,2.4681]
[1723787736728,0.89991426,2604.0,2603.6,2.4681]
[1723787737188,0.82067,2604.0,2603.6,2.4681]
[1723787737658,0.07930459,2603.9,2603.6,2.4681]
[1723787739158,2.30397,2604.2,2603.6,2.4681]
[1723787739669,0.07928783,2604.1,2603.6,2.4681]
[1723787739856,0.51911443,2604.1,2603.6,2.4681]
[1723787740062,0.07928783,2604.1,2603.6,2.4681]
[1723787740359,0.07928783,2604.1,2603.8,4.57555]
[1723787740853,0.07946213,2604.0,2603.8,4.57555]
[1723787741097,2.4007,2604.3,2603.8,4.57555]
[1723787741250,0.07944873,2603.9,2603.8,4.57555]
[1723787741451,2.4007,2604.3,2603.8,4.57555]
[1723787741685,0.07944873,2603.9,2603.8,4.57555]
[1723787742058,4.31820428,2604.4,2603.8,4.57555]
[1723787742259,0.07946884,2603.9,2603.8,4.57555]
[1723787742465,4.31820428,2604.4,2603.8,4.57555]
[1723787742649,0.07948894,2603.9,2603.8,4.57555]
[1723787742849,4.31820428,2604.4,2603.8,4.57555]
[1723787743050,0.07948894,2603.9,2603.8,4.57555]
[1723787743282,4.31820428,2604.4,2603.8,4.57555]
[1723787744099,0.07948894,2604.3,2603.8,4.57555]
[1723787744253,0.89470826,2604.3,2603.8,4.57555]
[1723787751787,0.89470826,2604.3,2603.8,2.30425]
[1723787752104,2.385,2604.2,2603.8,2.30425]
[1723787752455,0.07951574,2604.1,2603.8,2.30425]
[1723787753112,0.81521932,2604.3,2603.8,2.30425]
[1723787753286,0.07951574,2604.0,2603.8,2.30425]
[1723787753499,0.81521932,2604.3,2603.8,2.30425]
[1723787753683,0.07951574,2603.9,2603.8,2.30425]
[1723787753870,0.81521932,2604.3,2603.8,2.30425]
[1723787754070,0.07951574,2603.9,2603.8,2.30425]
[1723787754570,0.07951574,2603.9,2603.8,4.62665]
[1723787754769,1.328,2604.5,2603.8,4.62665]
[1723787754979,1.30847579,2604.4,2603.8,4.62665]
[1723787755412,0.07951574,2604.3,2603.8,4.62665]
[1723787759788,2.50641574,2604.3,2603.8,4.62665]
[1723787762242,2.50641574,2604.3,2603.9,2.30421]
[1723787762759,0.07951574,2604.3,2603.9,2.30421]
[1723787762896,0.07951574,2604.3,2604.2,4.60794]
[1723787763103,0.07951574,2604.3,2604.2,6.88574]
[1723787763400,0.07689291,2604.3,2604.2,2.30397]
[1723787763621,2.4807,2604.6,2604.0,4.66502]
[1723787763813,0.07696328,2604.3,2604.0,4.66502]
[1723787764025,2.4807,2604.6,2604.0,4.66502]
[1723787764224,0.07703364,2604.2,2604.0,4.66502]
[1723787764426,2.4807,2604.6,2604.0,4.66502]
[1723787764659,0.07703364,2604.1,2604.0,4.66502]
[1723787764871,2.4807,2604.6,2604.0,4.66502]
[1723787765018,0.07703364,2604.1,2604.0,4.66502]
[1723787765213,0.611223,2604.5,2604.0,4.66502]
[1723787765433,0.07703364,2604.1,2604.0,4.66502]
[1723787765633,2.4807,2604.6,2604.0,4.66502]
[1723787765834,0.07703364,2604.1,2604.0,4.66502]
[1723787766043,4.78433,2604.6,2604.0,4.66502]
[1723787766249,0.07704034,2604.1,2604.0,4.66502]
[1723787766450,4.78433,2604.6,2604.0,4.66502]
[1723787766650,0.07704704,2604.1,2604.0,4.66502]
[1723787766848,2.4807,2604.6,2604.1,2.30405]
[1723787767119,3.57041701,2604.6,2604.1,2.30405]
[1723787767366,3.57041701,2604.6,2604.0,5.99302]
[1723787768030,3.57041701,2604.6,2604.0,8.29709]
[1723787768446,3.57041701,2604.6,2604.0,5.99297]
[1723787771056,5.87404701,2604.6,2604.0,2.30407]
[1723787771383,0.7201957,2604.5,2604.0,2.30407]
[1723787773173,3.0238957,2604.5,2603.8,5.98476]
[1723787773782,3.0238957,2604.5,2603.8,8.28901]
[1723787773982,0.88979427,2604.4,2603.8,5.98475]
[1723787774300,0.88979427,2604.4,2603.6,2.4292]
[1723787774301,2.30415,2604.0,2603.6,2.4292]
[1723787774475,0.230415,2603.9,2603.5,0.39959372]
[1723787774663,0.230415,2603.9,2603.4,6.06183]
[1723787777692,2.534665,2603.9,2603.4,1.328]
[1723787777890,0.7334815,2603.8,2603.2,5.90209]
[1723787778349,0.7334815,2603.8,2603.3,35.0]
[1723787779167,0.07420173,2603.7,2603.3,35.0]
[1723787779508,0.7334815,2603.8,2603.3,35.0]
[1723787779722,0.07420173,2603.7,2603.3,35.0]
[1723787780217,0.7334815,2603.8,2603.3,35.0]
[1723787780401,0.07420173,2603.6,2603.3,35.0]
[1723787780599,2.534665,2603.9,2603.3,35.0]
[1723787780768,0.07420173,2603.5,2603.3,35.0]
[1723787780969,2.534665,2603.9,2603.3,37.30475]
[1723787781171,0.07420173,2603.4,2603.3,37.30475]
[1723787781365,2.534665,2603.9,2603.4,1.328]
[1723787781616,2.30425,2603.9,2603.4,1.328]
[1723787781975,2.30425,2603.9,2603.4,36.328]
[1723787782391,2.30425,2603.9,2603.4,35.0]
[1723787784623,2.3046,2603.5,2603.3,0.39962615]
[1723787784833,2.3803,2603.4,2602.8,2.30519]
[1723787784972,2.3803,2603.4,2602.9,35.0]
[1723787785372,5.48771477,2603.4,2602.9,35.0]
[1723787785611,5.48771477,2603.4,2602.8,3.63319]
[1723787785794,3.18303477,2603.4,2602.8,3.63319]
[1723787786124,3.18303477,2603.4,2602.8,38.63319]
[1723787787011,3.18303477,2603.4,2602.8,39.03285098]
[1723787789979,2.3803,2603.4,2602.9,2.30507]
[1723787790179,9.916,2603.6,2603.0,5.88845]
[1723787790625,9.916,2603.6,2603.0,8.19341]
[1723787790944,11.2604475,2603.6,2603.0,8.19341]
[1723787791434,11.2604475,2603.6,2603.1,2.30491]
[1723787791579,7.44,2603.6,2603.2,3.63278]
[1723787791985,7.44,2603.6,2603.2,38.63278]
[1723787792579,7.44,2603.6,2603.2,3.63278]
[1723787792911,7.44,2603.6,2603.3,2.4197]
[1723787793112,8.184,2603.6,2603.2,37.30478]
[1723787793318,8.184,2603.6,2603.2,2.30478]
[1723787794235,0.07371426,2603.5,2603.2,2.30478]
[1723787795315,2.3202,2603.7,2603.2,2.30478]
[1723787795538,0.07371426,2603.6,2603.2,2.30478]
[1723787797109,0.07371426,2603.6,2603.2,3.63278]
[1723787797310,24.28456,2603.9,2603.3,2.3507]
[1723787797519,2.26612349,2603.8,2603.3,2.3507]
[1723787798321,4.57045349,2603.8,2603.3,2.3507]
[1723787799252,2.26612349,2603.8,2603.3,2.3507]
[1723787799403,0.07369749,2603.8,2603.3,2.3507]
[1723787800238,2.37801749,2603.8,2603.3,2.3507]
[1723787801038,2.37801749,2603.8,2603.2,3.63278]
[1723787801650,2.30443,2603.7,2603.1,2.3843]
[1723787801851,2.30443,2603.7,2603.1,39.68924]
[1723787802172,0.07369749,2603.6,2603.1,39.68924]
[1723787803351,0.07369749,2603.6,2603.1,4.68924]
[1723787805324,2.33369749,2603.6,2603.1,2.30494]
[1723787805975,2.79751024,2603.6,2603.1,2.30494]
[1723787806145,2.30461,2603.5,2603.0,1.328]
[1723787806655,2.79751024,2603.6,2603.0,3.63302]
[1723787806656,0.07373436,2603.4,2603.0,3.63302]
[1723787806825,2.72381275,2603.6,2603.0,3.63302]
[1723787807022,0.07373436,2603.5,2603.0,3.63302]
[1723787810361,0.07373436,2603.5,2603.0,38.63302]
[1723787822313,0.07373436,2603.5,2603.0,3.63302]
[1723787822513,0.81438707,2603.5,2603.0,3.63302]
[1723787824053,0.07373436,2603.5,2603.2,2.30482]
[1723787824345,14.06077573,2603.9,2603.3,2.4082]
[1723787824542,1.61176998,2603.8,2603.3,2.4082]
[1723787825502,3.91608998,2603.8,2603.3,2.4082]
[1723787827339,2.4941,2603.6,2603.1,37.4958]
[1723787827516,0.55274777,2603.5,2603.1,37.4958]
[1723787827718,0.07289577,2603.5,2603.1,37.4958]
[1723787828720,0.07289577,2603.5,2603.1,39.80069]
[1723787829634,0.07289577,2603.5,2603.1,37.30489]
[1723787831376,2.3844,2603.4,2603.0,0.40014252]
[1723787831526,2.3844,2603.4,2602.6,6.09655]
[1723787831732,0.0729058,2603.3,2602.7,1.73569621]
[1723787831959,1.28995277,2603.3,2602.7,0.39992745]
[1723787832865,1.28995277,2603.3,2602.8,3.63314]
[1723787833166,0.0729058,2603.3,2602.8,3.63314]
[1723787834241,0.0729058,2603.3,2602.9,2.3795]
[1723787834575,12.04931,2603.5,2602.9,2.3795]
[1723787834727,0.07279182,2603.2,2602.9,2.3795]
[1723787834927,12.04931,2603.5,2602.9,2.3795]
[1723787835167,1.71708524,2603.4,2602.9,2.3795]
[1723787835373,4.02177524,2603.4,2602.9,2.3795]
[1723787835799,1.71708524,2603.4,2602.9,4.68459]
[1723787835970,0.07279182,2603.4,2602.9,4.68459]
[1723787836164,0.07279182,2603.4,2603.0,1.328]
[1723787836572,0.07279182,2603.4,2603.0,3.63303]
[1723787836972,0.07279182,2603.4,2603.0,5.93799]
[1723787837977,0.07279182,2603.4,2603.1,2.30492]
[1723787838303,0.07279182,2603.4,2603.0,5.91736]
[1723787838487,0.07279182,2603.4,2603.0,8.22232]
[1723787838898,0.07279182,2603.4,2603.0,5.91736]
[1723787839281,0.07279182,2603.4,2603.0,3.63296]
[1723787842287,0.824071,2603.4,2603.0,1.328]
[1723787842478,3.128771,2603.4,2603.0,1.328]
[1723787842673,2.4478,2603.3,2602.8,2.70508039]
[1723787842871,0.9159777,2603.3,2602.8,6.52898039]
[1723787843087,0.07282535,2603.2,2602.8,6.52898039]
[1723787843384,0.9159777,2603.3,2602.8,6.52898039]
[1723787843582,0.07282535,2603.1,2602.8,6.52898039]
[1723787843786,2.4314,2603.2,2602.8,0.39991039]
[1723787843987,0.07282535,2603.0,2602.8,0.39991039]
[1723787844269,0.07282535,2602.9,2602.8,0.39991039]
[1723787844477,3.07337569,2603.2,2602.8,0.39991039]
[1723787844872,0.70223769,2603.1,2602.8,0.39991039]
[1723787846793,0.70223769,2603.1,2602.8,1.72791039]
[1723787847000,0.07282535,2603.1,2602.8,1.72791039]
[1723787855173,0.07282535,2603.1,2602.8,0.39991039]
[1723787855174,2.37782535,2603.1,2602.8,0.39991039]
[1723787856517,0.07282535,2603.1,2602.8,0.39991039]
[1723787858018,0.07282535,2603.1,2602.8,1.72791039]
[1723787861479,0.40219166,2603.1,2602.8,1.72791039]
[1723787861698,8.25424,2602.9,2602.8,0.39991039]
[1723787861836,8.25424,2602.9,2602.0,2.3992]
[1723787861837,2.316,2602.6,2602.0,2.3992]
[1723787862036,2.316,2602.6,2602.1,0.39993631]
[1723787862037,2.30574,2602.2,2602.1,0.39993631]
[1723787862360,4.74870103,2602.2,2602.1,0.39993631]
[1723787862574,4.74870103,2602.2,2601.6,4.59492]
[1723787862773,4.74870103,2602.2,2601.8,0.40009327]
[1723787862953,2.30594,2602.0,2601.8,0.40009327]
[1723787863274,0.07244302,2601.9,2601.8,0.40009327]
[1723787866691,4.67604,2602.2,2601.8,0.40009327]
[1723787866894,0.07223164,2601.9,2601.8,0.40009327]
[1723787867102,2.3703,2602.2,2601.8,0.40009327]
[1723787867400,0.07223164,2602.1,2601.8,0.40009327]
[1723787869668,2.4414,2602.3,2601.8,0.40009327]
[1723787870319,0.07195983,2602.2,2601.8,0.40009327]
[1723787870685,4.74706,2602.3,2601.8,0.40009327]
[1723787870889,0.07195983,2602.1,2601.8,0.40009327]
[1723787871202,4.74706,2602.3,2601.8,0.40009327]
[1723787871413,0.0719632,2602.0,2601.8,0.40009327]
[1723787871561,4.74706,2602.3,2601.8,0.40009327]
[1723787871751,0.0719632,2602.2,2601.8,0.40009327]
[1723787871957,4.74706,2602.3,2601.8,0.40009327]
[1723787872189,0.0719632,2602.2,2601.8,0.40009327]
[1723787872557,6.3753432,2602.3,2601.8,0.40009327]
[1723787872921,0.07196991,2602.2,2601.8,0.40009327]
[1723787873075,2.37770991,2602.2,2601.8,0.40009327]
[1723787873409,2.30592,2602.0,2601.8,0.40009327]
[1723787873909,0.07197324,2601.9,2601.8,0.40009327]
[1723787878220,4.61155,2602.2,2601.8,0.40009327]
[1723787878396,0.07192292,2601.9,2601.8,0.40009327]
[1723787878601,0.86812332,2602.1,2601.8,0.40009327]
[1723787878926,3.17395332,2602.1,2601.8,0.40009327]
[1723787879239,2.37787292,2602.0,2601.8,0.40009327]
[1723787879415,2.37787292,2602.0,2601.5,3.7309]
[1723787879589,2.93304654,2602.0,2601.5,3.7309]
[1723787879780,2.93304654,2602.0,2601.5,2.4029]
[1723787879781,2.3061,2601.8,2601.5,2.4029]
[1723787879987,0.07191956,2601.7,2601.5,2.4029]
[1723787880395,2.3061,2601.8,2601.5,2.4029]
[1723787880540,0.07186249,2601.6,2601.5,2.4029]
[1723787880726,2.82282236,2601.8,2601.5,2.4029]
[1723787880936,0.07186249,2601.7,2601.5,2.4029]
[1723787881245,2.82282236,2601.8,2601.5,2.4029]
[1723787881458,0.07184906,2601.6,2601.5,2.4029]
[1723787881634,2.82282236,2601.8,2601.5,2.4029]
[1723787881835,0.07184906,2601.6,2601.5,2.4029]
[1723787882036,2.82282236,2601.8,2601.5,2.4029]
[1723787882221,0.07181886,2601.6,2601.5,2.4029]
[1723787882852,4.62285,2602.0,2601.5,3.7309]
[1723787882853,2.3169,2602.0,2601.5,3.7309]
[1723787883015,0.07177858,2601.6,2601.5,3.7309]
[1723787883230,2.3169,2602.0,2601.5,3.7309]
[1723787883432,2.3169,2602.0,2601.5,4.70924]
[1723787883433,0.07177858,2601.6,2601.5,4.70924]
[1723787883614,9.74577,2602.2,2601.6,2.2901]
[1723787883955,2.30583,2602.1,2601.7,36.328]
[1723787884122,1.27694529,2602.0,2601.7,1.328]
[1723787884635,1.27694529,2602.0,2601.7,36.328]
[1723787884941,1.27694529,2602.0,2601.6,2.2901]
[1723787885109,2.30601,2601.9,2601.6,2.2901]
[1723787885308,0.4301211,2601.8,2601.6,2.2901]
[1723787885508,0.07182557,2601.8,2601.3,0.40020586]
[1723787885704,0.07182557,2601.8,2601.3,1.72820586]
[1723787886241,2.3062,2601.7,2601.3,36.72820586]
[1723787886725,0.07182557,2601.6,2601.3,36.72820586]
[1723787886928,2.3043,2601.5,2601.3,0.40020586]
[1723787887130,2.30644,2601.5,2601.3,0.40020586]
[1723787887432,0.0718155,2601.4,2601.3,0.40020586]
[1723787888038,0.0718155,2601.4,2601.0,36.328]
[1723787888240,2.30664,2601.2,2601.0,0.40028703]
[1723787888402,2.30664,2601.2,2600.7,2.2769]
[1723787888606,0.071604,2601.1,2600.7,2.2769]
[1723787888803,0.071604,2601.1,2600.8,0.40031003]
[1723787889037,2.30664,2601.2,2600.8,0.40031003]
[1723787889241,0.07155028,2601.0,2600.8,0.40031003]
[1723787889444,3.132759,2601.2,2600.8,0.40031003]
[1723787889900,0.07155028,2601.1,2600.8,0.40031003]
[1723787890644,0.07155028,2601.1,2600.8,1.72831003]
[1723787890949,2.30674,2601.1,2600.8,0.40031003]
[1723787891148,2.768069,2601.1,2600.8,0.40031003]
[1723787891362,0.07147975,2601.0,2600.8,0.40031003]
[1723787894153,2.43647975,2601.0,2600.8,0.40031003]
[1723787896622,2.43647975,2601.0,2600.6,1.328]
[1723787897170,0.07147975,2601.0,2600.6,1.328]
[1723787897307,0.07147975,2601.0,2600.7,2.304]
[1723787897509,0.07147975,2601.0,2600.9,2.304]
[1723787897708,2.30655,2601.3,2600.9,2.304]
[1723787898456,0.07137898,2601.2,2600.9,2.304]
[1723787898814,2.30655,2601.3,2600.9,2.304]
[1723787899011,0.07140585,2601.1,2600.9,2.304]
[1723787899225,2.30655,2601.3,2600.9,2.304]
[1723787899409,7.44,2601.4,2600.9,2.304]
[1723787899410,0.07140585,2601.0,2600.9,2.304]
[1723787899662,7.44,2601.4,2600.9,2.304]
[1723787899951,10.78471926,2601.4,2600.9,37.304]
[1723787900159,10.78471926,2601.4,2601.0,1.328]
[1723787900160,0.07140585,2601.3,2601.0,1.328]
[1723787900361,0.07140585,2601.3,2601.0,3.6348]
[1723787900946,0.07140585,2601.3,2601.1,35.0]
[1723787901151,0.07140585,2601.3,2601.0,3.6348]
[1723787901716,0.07140585,2601.3,2600.9,2.304]
[1723787902023,0.82254644,2601.3,2600.9,2.304]
[1723787902407,3.12394644,2601.3,2600.8,3.63497]
[1723787903555,2.37794585,2601.3,2600.9,2.3928]
[1723787903716,2.37794585,2601.3,2600.7,38.7208]
[1723787904309,2.37794585,2601.3,2600.7,41.02784]
[1723787906061,2.2715,2601.2,2600.7,2.3928]
[1723787906216,3.25329459,2601.2,2600.7,2.3928]
[1723787906411,0.06947814,2601.1,2600.7,2.3928]
[1723787907063,0.06947814,2601.1,2600.8,1.328]
[1723787907363,9.74645,2601.4,2600.8,3.63497]
[1723787907514,1.04407015,2601.3,2600.8,3.63497]
[1723787908017,3.35060015,2601.3,2600.8,3.63497]
[1723787908218,1.04407015,2601.3,2600.8,3.63497]
[1723787908746,0.06943115,2601.3,2600.8,3.63497]
[1723787908950,0.06943115,2601.3,2600.9,2.3324]
[1723787916166,0.06943115,2601.3,2600.9,4.63929]
[1723787916367,0.06943115,2601.3,2601.0,3.6348]
[1723787916566,0.06943115,2601.3,2601.1,2.3494]
[1723787917343,19.77,2601.6,2601.1,2.3494]
[1723787917548,0.06947815,2601.5,2601.1,2.3494]
[1723787917872,0.06947815,2601.5,2601.1,4.65611]
[1723787918604,0.06947815,2601.5,2601.1,2.3494]
[1723787922100,0.06947815,2601.5,2601.0,36.328]
[1723787923781,0.06947815,2601.5,2601.0,38.63477]
[1723787925382,1.29450397,2601.5,2601.0,38.63477]
[1723787926628,3.60088397,2601.5,2601.0,35.0]
[1723787927552,3.60088397,2601.5,2600.9,2.3196]
[1723787928554,3.60088397,2601.5,2600.9,5.95447]
[1723787928555,1.29450397,2601.5,2600.9,5.95447]
[1723787929229,0.5907134,2601.4,2600.9,4.62647]
[1723787929453,0.06947145,2601.3,2600.9,4.62647]
[1723787930016,0.06947145,2601.3,2601.0,2.4842]
[1723787932231,0.06947145,2601.3,2600.9,0.3994196]
[1723787932923,0.73793052,2601.3,2600.9,0.3994196]
[1723787934345,2.2615,2601.1,2600.9,0.3994196]
[1723787934781,0.06952856,2601.0,2600.9,0.3994196]
[1723787935691,0.06952856,2601.0,2600.9,2.7970196]
[1723787935898,0.06952856,2601.0,2600.9,0.3994196]
[1723787936073,0.66845907,2601.3,2600.9,0.3994196]
[1723787936414,0.06951176,2601.0,2600.9,0.3994196]
[1723787936558,0.06947479,2601.0,2600.9,0.3994196]
[1723787937014,0.58721625,2601.2,2600.9,0.3994196]
[1723787937255,0.06947479,2601.1,2600.9,0.3994196]
[1723787939311,0.06944456,2601.0,2600.9,0.3994196]
[1723787939875,2.66324225,2601.2,2600.9,0.3994196]
[1723787940111,0.06944456,2601.0,2600.9,0.3994196]
[1723787940276,5.08604225,2601.2,2600.9,0.3994196]
[1723787940474,0.0694412,2601.0,2600.9,0.3994196]
[1723787940874,5.08604225,2601.2,2600.9,0.3994196]
[1723787941105,0.0694412,2601.0,2600.9,0.3994196]
[1723787941618,0.35657225,2601.2,2600.9,0.3994196]
[1723787941912,0.06946807,2601.1,2600.9,0.3994196]
[1723787944524,0.3427351,2601.1,2600.9,0.3994196]
[1723787944870,2.6495051,2601.1,2600.9,0.3994196]
[1723787945307,2.6495051,2601.1,2600.6,2.3672]
[1723787945627,5.0695051,2601.1,2600.6,2.7664668]
[1723787945777,0.77327074,2601.0,2600.6,0.3992668]
[1723787946328,2.3334,2600.8,2600.1,6.10562]
[1723787946535,2.3334,2600.8,2600.1,4.77762]
[1723787946825,2.3334,2600.8,2600.2,0.39922561]
[1723787946991,0.06941433,2600.7,2600.2,0.39922561]
[1723787947612,2.37655433,2600.7,2600.2,0.39922561]
[1723787947821,4.75516543,2600.6,2600.2,0.39922561]
[1723787948272,2.30735,2600.4,2600.2,0.39922561]
[1723787948512,4.73243348,2600.5,2600.2,0.39922561]
[1723787948711,0.06920938,2600.3,2600.2,0.39922561]
[1723787949040,0.06902794,2600.3,2600.2,0.39922561]
[1723787949246,4.66313,2600.5,2600.2,0.39922561]
[1723787949453,0.71111254,2600.4,2600.2,0.39922561]
[1723787949774,0.78014048,2600.4,2600.2,0.39922561]
[1723787950059,3.08749048,2600.4,2600.2,0.39922561]
[1723787950723,3.08749048,2600.4,2600.0,0.0373177]
[1723787951133,0.06902794,2600.4,2600.1,1.328]
[1723787951330,0.06902794,2600.4,2600.2,2.4171]
[1723787951533,4.75515543,2600.6,2600.2,2.4171]
[1723787951735,0.06893383,2600.3,2600.2,2.4171]
[1723787951930,2.44799543,2600.6,2600.2,2.4171]
[1723787952140,0.06893383,2600.3,2600.2,2.4171]
[1723787952340,2.44799543,2600.6,2600.2,2.4171]
[1723787952542,0.06893383,2600.3,2600.1,1.328]
[1723787952883,0.06894726,2600.2,2600.1,1.328]
[1723787953230,0.95566454,2600.5,2600.1,1.328]
[1723787953483,0.06894726,2600.4,2600.1,1.328]
[1723787953697,2.2597,2600.3,2600.0,0.43647534]
[1723787953991,2.2597,2600.3,2600.0,0.0373177]
[1723787954169,0.06877922,2600.2,2600.0,0.0373177]
[1723787954473,2.2597,2600.3,2600.0,0.0373177]
[1723787954675,0.06877922,2600.1,2600.0,0.0373177]
[1723787954858,2.2597,2600.3,2600.0,0.0373177]
[1723787955061,0.06877922,2600.2,2600.0,0.0373177]
[1723787955265,2.86976823,2600.3,2600.0,0.0373177]
[1723787955450,0.06877922,2600.1,2600.0,0.0373177]
[1723787955779,2.30734,2600.4,2600.0,0.0373177]
[1723787956084,4.72382691,2601.2,2600.0,0.0373177]
[1723787956085,9.74713,2600.7,2600.1,1.328]
[1723787956241,0.06868508,2600.3,2600.1,1.328]
[1723787956443,2.30733,2600.5,2600.1,1.328]
[1723787956672,0.06868508,2600.4,2600.1,1.328]
[1723787956984,0.06868508,2600.4,2600.3,1.328]
[1723787957144,0.06868508,2600.4,2600.3,3.8175]
[1723787957348,7.44,2600.7,2600.3,3.8175]
[1723787957533,0.06873888,2600.4,2600.3,3.8175]
[1723787958060,7.44,2600.7,2600.3,3.8175]
[1723787958378,7.44,2600.7,2600.3,6.1249]
[1723787958379,0.06881283,2600.4,2600.3,6.1249]
[1723787958530,7.44,2600.7,2600.3,6.1249]
[1723787958730,0.06888677,2600.4,2600.3,6.1249]
[1723787958930,25.883834,2600.8,2600.3,3.8175]
[1723787959178,0.06888677,2600.4,2600.3,3.8175]
[1723787959339,2.30698,2600.8,2600.3,3.8175]
[1723787959551,0.0688935,2600.4,2600.3,3.8175]
[1723787959745,2.30698,2600.8,2600.3,3.8175]
[1723787959944,0.0688935,2600.4,2600.3,2.4895]
[1723787960151,2.30698,2600.8,2600.3,2.4895]
[1723787960335,0.06891703,2600.4,2600.3,2.4895]
[1723787960564,2.30698,2600.8,2600.3,2.4895]
[1723787960875,0.230698,2600.7,2600.3,2.4895]
[1723787961084,0.29961503,2600.7,2600.3,2.4895]
[1723787961270,0.29961503,2600.7,2600.1,2.30754]
[1723787961482,4.59817,2600.6,2600.0,0.0373177]
[1723787961796,0.4897785,2600.5,2600.1,3.6304]
[1723787961975,0.0688935,2600.5,2600.1,5.93798]
[1723787962361,2.537768,2600.7,2600.1,5.93798]
[1723787962544,0.06888005,2600.4,2600.1,5.93798]
[1723787962748,2.537768,2600.7,2600.1,5.93798]
[1723787962979,0.06888005,2600.3,2600.1,5.93798]
[1723787963148,2.537768,2600.7,2600.1,5.93798]
[1723787963149,2.30707,2600.7,2600.1,5.93798]
[1723787963350,0.06888005,2600.2,2600.1,5.93798]
[1723787963561,2.30707,2600.7,2600.1,5.93798]
[1723787963780,0.06887669,2600.2,2600.1,5.93798]
[1723787963982,1.328,2600.9,2600.2,2.30745]